bitfinex/quotes_ETHUSD_20240711
["timestamp","ask_amount","ask_price","bid_price","bid_amount"]
[1720670972453,14.9803672,3088.6,3088.5,2.201]
[1720670972654,11.64098097,3088.6,3088.5,2.201]
[1720670973082,9.74748097,3088.6,3088.5,2.201]
[1720670973255,5.7794814,3088.6,3088.5,2.201]
[1720670973468,7.796365,3088.6,3088.5,2.201]
[1720670975298,7.796365,3088.6,3088.5,2.401]
[1720670976760,7.79672607,3088.6,3088.5,2.401]
[1720670977815,4.40998938,3088.6,3088.5,4.719]
[1720670978096,4.59709333,3088.6,3088.5,4.719]
[1720670979062,1.59709333,3088.6,3088.5,4.719]
[1720670979255,4.59709333,3088.6,3088.5,4.919]
[1720670979461,1.59709333,3088.6,3088.5,4.919]
[1720670979893,1.59709333,3088.6,3088.5,2.601]
[1720670980061,1.29456057,3088.6,3088.5,2.601]
[1720670980266,5.22963408,3088.6,3088.5,2.601]
[1720670980468,8.22963408,3088.6,3088.5,2.601]
[1720670980797,9.01680507,3088.6,3088.5,2.601]
[1720670983384,9.01680507,3088.6,3088.5,2.801]
[1720670983705,9.01710446,3088.6,3088.5,2.801]
[1720670984122,6.01710446,3088.6,3088.5,2.801]
[1720670984322,5.22993347,3088.6,3088.5,2.801]
[1720670984820,2.41680994,3088.6,3088.5,2.801]
[1720670985619,3.20398093,3088.6,3088.5,2.801]
[1720670986021,5.2302907,3088.6,3088.5,2.801]
[1720670986223,6.20398093,3088.6,3088.5,2.801]
[1720670986392,5.41680994,3088.6,3088.5,2.801]
[1720670986792,9.01764181,3088.6,3088.5,2.801]
[1720670986993,6.2041543,3088.6,3088.5,2.801]
[1720670987528,6.20425608,3088.6,3088.5,2.801]
[1720670987823,1.59708715,3088.6,3088.5,5.4702]
[1720670988032,3.63955199,3088.6,3088.5,5.4702]
[1720670988336,2.76742501,3088.6,3088.5,5.4702]
[1720670990291,0.21647991,3088.6,3088.5,5.4702]
[1720670990489,3.50407717,3088.6,3088.5,5.4702]
[1720670990725,5.14693116,3088.6,3088.5,5.4702]
[1720670991231,2.76494026,3088.6,3088.5,5.4702]
[1720670991633,5.1470743,3088.6,3088.5,5.4702]
[1720670992645,2.76494026,3088.6,3088.5,5.4702]
[1720670993259,5.14713034,3088.6,3088.5,5.4702]
[1720670993404,2.76494026,3088.6,3088.5,5.4702]
[1720670993600,1.64285399,3088.6,3088.5,5.4702]
[1720670993939,2.76510612,3088.6,3088.5,5.4702]
[1720670994159,5.14731625,3088.6,3088.5,5.4702]
[1720670994653,2.76510612,3088.6,3088.5,5.4702]
[1720670995458,5.14732689,3088.6,3088.5,5.4702]
[1720670996737,5.14711985,3088.6,3088.5,5.4702]
[1720670997265,0.13317652,3088.6,3088.5,5.4702]
[1720670997548,1.5777148,3088.6,3088.5,5.4702]
[1720670997715,5.08194151,3088.6,3088.5,5.4702]
[1720670997915,5.14711971,3088.6,3088.5,5.4702]
[1720670999651,2.76503526,3088.6,3088.5,5.4702]
[1720671000153,5.14722696,3088.6,3088.5,5.4702]
[1720671000655,2.76506679,3088.6,3088.5,5.4702]
[1720671003225,5.5791053,3088.6,3088.5,3.001]
[1720671003428,6.21617371,3088.6,3088.5,3.001]
[1720671005056,3.4021386,3088.6,3088.5,3.001]
[1720671005286,2.76514035,3088.6,3088.5,3.001]
[1720671006545,2.76537542,3088.6,3088.5,3.001]
[1720671008254,4.65887542,3088.6,3088.5,3.001]
[1720671008465,3.55625263,3088.6,3088.5,3.001]
[1720671009938,1.2554935,3088.6,3088.5,3.001]
[1720671010157,6.83515941,3088.6,3088.5,3.001]
[1720671010372,7.62603662,3088.6,3088.5,3.001]
[1720671010726,10.96542285,3088.6,3088.5,3.001]
[1720671011069,11.59403662,3088.6,3088.5,3.001]
[1720671011472,14.93342285,3088.6,3088.5,3.001]
[1720671011769,11.59403662,3088.6,3088.5,3.001]
[1720671013278,8.96177942,3088.6,3088.5,3.001]
[1720671013439,11.59410244,3088.6,3088.5,3.001]
[1720671013628,14.93348867,3088.6,3088.5,3.001]
[1720671014030,11.59410244,3088.6,3088.5,3.001]
[1720671015365,8.17610244,3088.6,3088.5,3.001]
[1720671015941,7.62610244,3088.6,3088.5,3.001]
[1720671016668,4.99377942,3088.6,3088.5,5.4022]
[1720671016863,6.64885949,3088.6,3088.5,6.1972]
[1720671017172,6.37001101,3088.6,3088.5,6.1972]
[1720671017341,5.5791338,3088.6,3088.5,6.1972]
[1720671017963,5.5791338,3088.6,3088.5,5.1972]
[1720671018154,5.5791338,3088.6,3088.5,5.3972]
[1720671018746,5.5791338,3088.6,3088.5,2.996]
[1720671020191,3.73826218,3088.6,3088.5,2.996]
[1720671020330,2.76530084,3088.6,3088.5,2.996]
[1720671020664,5.88996375,3088.6,3088.5,2.201]
[1720671020870,3.07576147,3088.6,3088.5,2.201]
[1720671021040,3.62576147,3088.6,3088.5,2.201]
[1720671021240,4.41663868,3088.6,3088.5,2.201]
[1720671022032,4.41663868,3088.6,3088.5,2.401]
[1720671023469,3.29442498,3088.6,3088.5,2.401]
[1720671023673,4.41672571,3088.6,3088.5,4.8107]
[1720671023968,3.55626508,3088.6,3088.5,4.8107]
[1720671024151,2.76538787,3088.6,3088.5,4.8107]
[1720671024351,2.76538787,3088.6,3088.5,5.6057]
[1720671025671,2.76538787,3088.6,3088.5,4.8107]
[1720671026237,2.76538787,3088.6,3088.5,5.0107]
[1720671026872,2.76535122,3088.6,3088.5,5.0107]
[1720671027168,2.76535178,3088.6,3088.5,5.0107]
[1720671028696,6.40975613,3088.6,3088.5,2.601]
[1720671029016,7.20063334,3088.6,3088.5,2.601]
[1720671030187,7.20063334,3088.6,3088.5,2.801]
[1720671030370,6.07836694,3088.6,3088.5,2.801]
[1720671030570,7.20066627,3088.6,3088.5,2.801]
[1720671031194,7.20066627,3088.6,3088.5,2.78219]
[1720671031979,6.44289282,3088.6,3088.5,2.78219]
[1720671032310,7.23377003,3088.6,3088.5,2.78219]
[1720671033708,4.60156184,3088.6,3088.5,2.78219]
[1720671033912,3.44285413,3088.6,3088.5,2.78219]
[1720671034129,7.23373134,3088.6,3088.5,2.78219]
[1720671034274,7.23373134,3088.6,3088.5,2.98219]
[1720671037092,4.60156184,3088.6,3088.5,2.98219]
[1720671037300,6.44292204,3088.6,3088.5,2.98219]
[1720671037597,7.23379928,3088.6,3088.5,2.98219]
[1720671038898,7.23379928,3088.6,3088.5,5.39799]
[1720671039232,7.23379928,3088.6,3088.5,6.19299]
[1720671039233,5.18115225,3088.6,3088.5,6.19299]
[1720671039412,2.79851772,3088.6,3088.5,6.19299]
[1720671039912,4.83977465,3088.6,3088.5,6.19299]
[1720671040522,1.67586988,3088.6,3088.5,6.19299]
[1720671040693,2.79791586,3088.6,3088.5,6.19299]
[1720671041023,4.83954872,3088.6,3088.5,6.19299]
[1720671041222,2.79791586,3088.6,3088.5,6.19299]
[1720671041431,4.83925447,3088.6,3088.5,6.19299]
[1720671041786,4.83925447,3088.6,3088.5,6.812289]
[1720671041988,1.22314806,3088.6,3088.5,6.812289]
[1720671042188,3.54979871,3088.6,3088.5,6.812289]
[1720671042386,1.5084601,3088.6,3088.5,6.812289]
[1720671042597,1.22314806,3088.6,3088.5,6.812289]
[1720671042825,1.5084069,3088.6,3088.5,6.812289]
[1720671043389,1.22314806,3088.6,3088.5,6.812289]
[1720671043591,0.10110208,3088.6,3088.5,6.812289]
[1720671043836,1.12199844,3088.6,3088.5,6.812289]
[1720671044155,2.92077758,3088.6,3088.5,4.396489]
[1720671044297,0.098341,3088.6,3088.5,4.396489]
[1720671044492,1.79877914,3088.6,3088.5,6.783289]
[1720671045422,0.098341,3088.6,3088.5,6.783289]
[1720671046681,1.4577544,3088.6,3088.5,6.783289]
[1720671046797,0.098341,3088.6,3088.5,6.783289]
[1720671047604,1.45751266,3088.6,3088.5,6.783289]
[1720671049296,0.098341,3088.6,3088.5,6.783289]
[1720671050232,0.77759798,3088.6,3088.5,9.783289]
[1720671050607,1.11734121,3088.6,3088.5,9.783289]
[1720671051331,0.098341,3088.6,3088.5,9.783289]
[1720671051934,0.77734978,3088.6,3088.5,9.783289]
[1720671052928,0.098341,3088.6,3088.5,9.783289]
[1720671053313,0.67900878,3088.8,3088.6,2.4088]
[1720671053525,0.67900878,3088.9,3088.8,2.4088]
[1720671053724,1.01900021,3089.0,3088.9,2.4088]
[1720671055443,1.01900021,3089.1,3088.9,2.4088]
[1720671055600,0.6784023,3089.0,3088.9,2.4088]
[1720671055802,0.6784023,3089.1,3088.9,0.795]
[1720671056124,0.67839351,3089.1,3089.0,2.4088]
[1720671056434,0.67839351,3089.1,3089.0,2.72918]
[1720671056641,0.77687835,3089.1,3089.0,2.72918]
[1720671056802,0.77671606,3089.1,3089.0,2.72918]
[1720671057324,0.09848484,3089.1,3089.0,2.72918]
[1720671059306,0.09848484,3089.1,3088.9,2.3193]
[1720671059504,0.09848484,3089.1,3089.0,0.795]
[1720671059803,0.77671606,3089.1,3089.0,0.795]
[1720671060008,0.09848484,3089.1,3089.0,0.795]
[1720671060600,0.09848484,3089.1,3088.6,2.3193]
[1720671060804,1.01688358,3088.8,3088.5,2.98219]
[1720671061049,1.11559696,3088.7,3088.5,2.98219]
[1720671061217,1.01688358,3088.6,3088.5,2.98219]
[1720671061607,1.50382757,3088.6,3088.5,2.98219]
[1720671062010,5.47182757,3088.6,3088.5,2.98219]
[1720671062244,2.71886878,3088.6,3088.5,1.90379744]
[1720671062465,1.50382757,3088.6,3088.5,1.90379744]
[1720671062743,1.22078117,3088.6,3088.5,1.90379744]
[1720671062955,0.09871338,3088.6,3088.5,1.90379744]
[1720671063250,3.0,3089.3,3088.5,1.90379744]
[1720671063251,2.03388697,3088.9,3088.5,1.90379744]
[1720671063546,3.6034427,3088.8,3088.5,2.69879744]
[1720671063719,3.400054,3088.7,3088.5,2.69879744]
[1720671063929,3.400054,3088.6,3088.5,2.69879744]
[1720671064302,1.46119639,3088.6,3088.5,2.69879744]
[1720671064542,3.49508336,3088.6,3088.5,1.69879744]
[1720671064742,3.86493057,3088.6,3088.5,1.89879744]
[1720671065338,1.8310436,3088.6,3088.5,1.89879744]
[1720671065558,3.86493057,3088.6,3088.5,1.89879744]
[1720671065877,1.58695274,3088.6,3088.5,1.89879744]
[1720671066164,0.46487657,3088.6,3088.5,1.89879744]
[1720671066370,1.21720605,3088.6,3088.5,1.89879744]
[1720671066758,1.46139821,3088.6,3088.5,1.89879744]
[1720671066932,3.49556788,3088.6,3088.5,1.89879744]
[1720671067256,3.49556788,3088.6,3088.5,1.10379744]
[1720671067573,3.49556788,3088.6,3088.5,1.89879744]
[1720671067737,3.84512467,3088.6,3088.5,1.89879744]
[1720671068068,3.84512467,3088.6,3088.5,1.10379744]
[1720671068271,1.810955,3088.6,3088.5,1.10379744]
[1720671068647,3.84538519,3088.6,3088.5,1.30379744]
[1720671068975,1.810955,3088.6,3088.5,1.30379744]
[1720671069477,1.810955,3088.6,3088.5,2.09879744]
[1720671069637,3.84536844,3088.6,3088.5,2.09879744]
[1720671069838,3.8453467,3088.6,3088.5,2.09879744]
[1720671070568,1.810955,3088.6,3088.5,2.09879744]
[1720671070872,1.810955,3088.6,3088.5,1.30379744]
[1720671072758,1.810955,3088.6,3088.5,1.50379744]
[1720671073037,1.81108726,3088.6,3088.5,1.50379744]
[1720671073464,4.18478884,3088.6,3088.5,1.50379744]
[1720671073675,3.83523205,3088.6,3088.5,1.50379744]
[1720671074031,1.46153047,3088.6,3088.5,1.50379744]
[1720671074232,3.25173967,3088.6,3088.5,1.50379744]
[1720671074577,3.49593183,3088.6,3088.5,1.50379744]
[1720671074869,3.84552501,3088.6,3088.5,1.50379744]
[1720671075071,1.21733831,3088.6,3088.5,1.50379744]
[1720671075379,3.49593726,3088.6,3088.5,1.50379744]
[1720671075531,1.21733831,3088.6,3088.5,1.50379744]
[1720671075930,1.46153301,3088.6,3088.5,1.50379744]
[1720671076178,0.33922406,3088.6,3088.5,1.50379744]
[1720671076385,1.21720777,3088.6,3088.5,1.50379744]
[1720671076671,1.4512584,3088.6,3088.5,1.50379744]
[1720671076855,1.4512584,3088.6,3088.5,1.70379744]
[1720671077171,1.4512584,3088.6,3088.5,1.87417718]
[1720671077573,0.09502936,3088.6,3088.5,1.87417718]
[1720671078074,0.77312383,3088.6,3088.5,1.87417718]
[1720671078374,0.09502936,3088.6,3088.5,1.87417718]
[1720671078746,0.09502936,3088.6,3088.5,4.23897718]
[1720671080043,0.67809447,3088.9,3088.5,4.23897718]
[1720671080275,0.6780661,3088.9,3088.8,1.908]
[1720671080587,0.67804546,3089.0,3088.9,2.398]
[1720671082041,0.67804546,3089.1,3088.9,2.398]
[1720671082264,0.67804546,3089.1,3088.9,5.398]
[1720671082570,0.1113825,3089.2,3088.9,5.398]
[1720671082876,0.1113825,3089.2,3089.0,0.7306]
[1720671083079,0.1113825,3089.2,3089.0,3.7306]
[1720671086677,0.08995013,3089.1,3089.0,3.7306]
[1720671088071,0.08995013,3089.1,3089.0,0.7306]
[1720671096566,0.08995013,3089.1,3089.0,1.63439744]
[1720671098484,0.08995013,3089.1,3089.0,0.90379744]
[1720671103795,0.08995013,3089.1,3089.0,3.34689744]
[1720671104401,0.08995013,3089.1,3089.0,6.34689744]
[1720671104722,0.45058258,3089.2,3089.0,6.34689744]
[1720671105228,0.08412657,3089.1,3089.0,6.34689744]
[1720671106522,0.08132235,3089.1,3089.0,7.17238718]
[1720671107731,0.08132235,3089.1,3089.0,4.72928718]
[1720671107885,1.20306969,3089.1,3089.0,0.90379744]
[1720671109383,1.88035968,3089.1,3089.0,0.90379744]
[1720671109799,1.20310934,3089.1,3089.0,0.90379744]
[1720671110025,1.20306305,3089.1,3089.0,0.90379744]
[1720671110329,1.88035304,3089.1,3089.0,0.90379744]
[1720671110637,1.20306305,3089.1,3089.0,1.43407718]
[1720671111337,0.08132235,3089.1,3089.0,3.74787718]
[1720671111537,0.08132235,3089.1,3089.0,6.74787718]
[1720671111741,0.1113825,3089.2,3089.0,6.74787718]
[1720671111909,0.1113825,3089.2,3089.1,0.86558772]
[1720671115154,0.1113825,3089.2,3089.1,3.22008772]
[1720671115355,0.19014032,3089.2,3089.1,3.22008772]
[1720671115685,0.81238505,3089.5,3089.1,3.22008772]
[1720671115817,0.07885318,3089.2,3089.1,3.22008772]
[1720671116018,0.67728999,3089.5,3089.1,3.22008772]
[1720671116250,1.12158801,3089.4,3089.2,0.78541649]
[1720671116450,0.67728999,3089.5,3089.3,4.2326]
[1720671116772,0.10054584,3091.3,3089.5,2.3048]
[1720671116773,0.67806754,3089.9,3089.5,2.3048]
[1720671117058,0.67806754,3090.3,3089.9,2.3048]
[1720671117220,1.79933443,3090.2,3090.0,0.42128]
[1720671117419,0.67806754,3090.2,3090.1,1.908]
[1720671117820,1.79939278,3090.2,3090.1,1.908]
[1720671118236,0.67806754,3090.2,3090.1,1.908]
[1720671118864,1.01593499,3090.3,3090.1,1.908]
[1720671119211,2.47597103,3090.2,3090.1,1.908]
[1720671119962,2.81735741,3090.2,3090.1,1.908]
[1720671120456,1.12140241,3090.2,3090.1,1.908]
[1720671120941,3.15654841,3090.2,3090.1,1.908]
[1720671121143,1.8935,3090.1,3089.3,6.737]
[1720671121465,1.35761655,3089.4,3089.3,8.645]
[1720671122053,1.35761655,3089.5,3089.3,8.645]
[1720671122272,1.01870459,3089.4,3089.3,8.645]
[1720671122432,0.67898577,3089.8,3089.5,2.4319]
[1720671122769,1.01850368,3090.1,3089.7,1.908]
[1720671122918,1.35797155,3090.4,3089.7,4.908]
[1720671123116,1.35797155,3090.4,3090.1,1.908]
[1720671123552,1.35797155,3090.5,3090.1,1.908]
[1720671123756,1.35797155,3090.4,3090.1,2.0988]
[1720671124352,1.35797155,3090.5,3090.1,2.0988]
[1720671125515,1.35797155,3090.6,3090.1,2.0988]
[1720671125763,1.69664927,3090.7,3090.5,1.908]
[1720671125934,1.35721561,3090.8,3090.5,1.908]
[1720671126141,1.35721561,3090.8,3090.7,1.908]
[1720671126734,1.35721561,3090.9,3090.7,1.908]
[1720671127374,1.35721561,3091.0,3090.7,1.908]
[1720671129047,1.35721561,3091.1,3090.7,1.908]
[1720671129380,0.36019601,3091.0,3090.7,1.908]
[1720671129679,1.3556425,3091.0,3090.7,1.908]
[1720671130440,1.3556425,3091.1,3090.7,1.908]
[1720671131656,1.08024072,3091.0,3090.7,1.908]
[1720671131993,0.06423652,3090.9,3090.7,1.908]
[1720671132337,1.01600786,3091.0,3090.7,1.908]
[1720671132534,0.06423652,3090.8,3090.7,1.908]
[1720671132776,0.67718287,3090.9,3090.7,1.908]
[1720671132978,0.06423652,3090.8,3090.7,1.908]
[1720671133137,0.74141939,3090.8,3090.7,1.908]
[1720671133538,0.06423652,3090.8,3090.7,1.908]
[1720671134079,0.06423652,3090.8,3090.7,4.2645]
[1720671134467,0.6770534,3091.0,3090.7,1.908]
[1720671134691,1.01600786,3091.1,3090.7,1.908]
[1720671134692,0.6770534,3090.9,3090.7,1.908]
[1720671134893,0.6770534,3091.0,3090.7,1.908]
[1720671135284,0.0623338,3090.9,3090.7,1.908]
[1720671135870,0.67683776,3090.8,3090.7,1.908]
[1720671136207,0.73916636,3090.8,3090.7,1.908]
[1720671136383,0.73916636,3090.8,3090.7,2.81179744]
[1720671136911,0.0623286,3090.8,3090.7,2.81179744]
[1720671137495,0.67683776,3091.0,3090.7,2.81179744]
[1720671137678,0.73915859,3090.9,3090.7,2.81179744]
[1720671138592,0.06232083,3090.9,3090.7,2.81179744]
[1720671139797,0.73915859,3090.9,3090.7,2.81179744]
[1720671143512,0.73915859,3090.9,3090.8,0.90379744]
[1720671143720,1.86033846,3090.9,3090.8,0.90379744]
[1720671145521,1.86034261,3090.9,3090.8,0.90379744]
[1720671146041,1.18350485,3090.9,3090.8,0.90379744]
[1720671146199,1.86034261,3090.9,3090.8,0.90379744]
[1720671146712,1.18350485,3090.9,3090.8,0.90379744]
[1720671147120,1.86034261,3090.9,3090.8,0.90379744]
[1720671149037,1.86032711,3090.9,3090.8,0.90379744]
[1720671149338,1.18348935,3090.9,3090.8,0.90379744]
[1720671149819,1.86059368,3090.9,3090.8,0.90379744]
[1720671150157,1.18348935,3090.9,3090.8,0.90379744]
[1720671150349,2.19874599,3090.9,3090.8,0.90379744]
[1720671150742,2.19874599,3090.9,3090.8,1.69679744]
[1720671152416,2.19875542,3090.9,3090.8,1.69679744]
[1720671153217,1.18349878,3090.9,3090.8,1.69679744]
[1720671153430,2.5371743,3090.9,3090.8,1.69679744]
[1720671153616,2.96023866,3090.9,3090.8,1.69679744]
[1720671154252,1.60656314,3090.9,3090.8,1.69679744]
[1720671154453,2.96023866,3090.9,3090.8,1.69679744]
[1720671155773,2.960261,3090.9,3090.8,1.69679744]
[1720671156325,1.60658548,3090.9,3090.8,1.69679744]
[1720671157331,3.30160908,3090.9,3090.8,0.90379744]
[1720671157547,1.74743474,3090.9,3090.8,0.90379744]
[1720671157750,3.50008548,3090.9,3090.8,0.90379744]
[1720671157937,6.01396778,3090.9,3090.8,0.90379744]
[1720671158649,5.71396778,3090.9,3090.8,0.90379744]
[1720671158849,5.77264794,3090.9,3090.8,0.90379744]
[1720671159164,5.27841461,3090.9,3090.8,0.90379744]
[1720671159345,6.3998947,3090.9,3090.8,0.90379744]
[1720671161395,7.00025386,3090.9,3090.8,0.90379744]
[1720671161789,9.80660415,3090.9,3090.8,0.90379744]
[1720671161988,9.80660415,3090.9,3090.8,1.10379744]
[1720671162303,8.68512406,3090.9,3090.8,1.10379744]
[1720671162470,6.39990535,3090.9,3090.8,1.10379744]
[1720671162673,9.20842456,3090.9,3090.8,1.10379744]
[1720671162877,7.55026451,3090.9,3090.8,1.10379744]
[1720671163202,7.55026451,3090.9,3090.8,0.85248975]
[1720671164010,7.55026451,3090.9,3090.8,0.2]
[1720671165095,10.96538161,3090.9,3090.1,6.737]
[1720671165415,10.96538161,3090.9,3088.5,21.375]
[1720671165416,2.3769223,3090.3,3089.5,6.737]
[1720671165729,2.03710789,3089.8,3089.5,6.737]
[1720671165896,2.03710789,3089.8,3089.4,2.3417]
[1720671165897,1.12170934,3089.7,3089.4,2.3417]
[1720671166089,1.69758759,3089.5,3089.4,2.3417]
[1720671166285,2.81929693,3089.5,3089.3,1.905]
[1720671166488,1.12176507,3089.4,3089.1,2.3781]
[1720671166706,1.01823289,3089.2,3089.1,2.3781]
[1720671167001,0.05830962,3089.2,3089.1,2.3781]
[1720671167194,1.35764385,3089.3,3089.1,2.3781]
[1720671167522,1.41595347,3089.2,3089.1,2.3781]
[1720671167725,0.05830962,3089.2,3088.9,1.905]
[1720671167927,1.01815459,3089.0,3088.9,1.905]
[1720671168226,0.05812298,3089.0,3088.9,1.905]
[1720671168429,0.05812298,3089.0,3088.8,2.3781]
[1720671168430,1.41566244,3089.0,3088.8,2.3781]
[1720671169020,1.01767681,3088.9,3088.8,2.3781]
[1720671169327,0.0580789,3088.9,3088.8,2.3781]
[1720671169535,1.07575571,3088.9,3088.8,2.3781]
[1720671169695,1.07575571,3088.9,3088.5,1.905]
[1720671169888,0.67809332,3088.7,3088.5,2.0955]
[1720671170288,1.01767681,3088.8,3088.5,4.4736]
[1720671170289,0.0576989,3088.6,3088.5,4.4736]
[1720671170609,0.67809332,3088.8,3088.5,4.4736]
[1720671170823,0.0576989,3088.6,3088.5,4.4736]
[1720671171029,0.67809332,3088.8,3088.5,4.4736]
[1720671171321,0.0576989,3088.6,3088.5,4.4736]
[1720671171527,0.67809332,3088.9,3088.5,4.4736]
[1720671171685,0.0576989,3088.6,3088.5,4.4736]
[1720671171889,0.67809332,3089.0,3088.5,4.4736]
[1720671172149,0.05757963,3088.6,3088.5,4.4736]
[1720671172323,0.67809332,3088.9,3088.5,4.4736]
[1720671172489,0.05757963,3088.6,3088.5,4.2831]
[1720671172692,1.35431831,3089.1,3088.5,4.2831]
[1720671172893,0.05757963,3088.6,3088.5,4.2831]
[1720671173114,0.67715915,3088.9,3088.5,4.2831]
[1720671173338,0.05757963,3088.6,3088.5,4.2831]
[1720671173505,0.67715915,3088.9,3088.5,4.71141]
[1720671173995,0.05757963,3088.8,3088.5,4.71141]
[1720671174392,0.05757963,3088.8,3088.5,4.4831]
[1720671174906,0.73473878,3088.8,3088.5,2.105]
[1720671175090,0.67715915,3088.6,3088.5,0.2]
[1720671175289,0.67715915,3088.7,3088.5,0.2]
[1720671175487,0.05754333,3088.6,3088.5,0.2]
[1720671175904,0.73470248,3088.6,3088.5,0.2]
[1720671176491,0.05754333,3088.6,3088.5,0.2]
[1720671178089,0.67715915,3088.8,3088.5,0.2]
[1720671178292,0.05739032,3088.6,3088.5,0.4]
[1720671179529,0.84644894,3088.8,3088.5,0.4]
[1720671179919,0.05729176,3088.7,3088.5,0.4]
[1720671180116,0.84644894,3088.8,3088.5,0.4]
[1720671180438,0.05729176,3088.7,3088.5,0.4]
[1720671180644,0.19194794,3088.7,3088.5,0.4]
[1720671180810,0.05729176,3088.6,3088.5,0.4]
[1720671182023,0.73445091,3088.6,3088.5,0.4]
[1720671182234,0.05729176,3088.6,3088.5,0.4]
[1720671182616,0.05729176,3088.6,3088.5,2.7125]
[1720671182919,0.67537236,3089.6,3088.6,2.3125]
[1720671183244,0.05523676,3089.5,3088.9,1.905]
[1720671183426,0.73060912,3089.5,3088.9,1.905]
[1720671184681,0.73060912,3089.5,3089.0,2.2827]
[1720671184864,0.05523676,3089.5,3089.0,2.2827]
[1720671185221,4.01455718,3089.8,3089.0,2.2827]
[1720671185533,0.05541315,3089.4,3089.0,2.2827]
[1720671185869,0.05541315,3089.3,3089.0,2.2827]
[1720671186073,3.0,3089.7,3089.0,2.2827]
[1720671186277,0.05541315,3089.2,3089.0,2.2827]
[1720671186479,0.67537236,3089.7,3089.0,2.2827]
[1720671186767,1.12182742,3089.6,3089.0,2.2827]
[1720671186967,1.12182742,3089.5,3088.9,1.905]
[1720671187275,1.17714324,3089.5,3088.9,1.905]
[1720671187449,1.12182742,3089.4,3088.9,1.905]
[1720671187635,1.17720031,3089.4,3088.9,1.905]
[1720671187831,1.12182742,3089.3,3088.9,1.905]
[1720671188037,3.67537236,3089.6,3088.9,1.905]
[1720671188253,0.05537289,3089.2,3088.7,2.4069]
[1720671188454,1.12187023,3089.1,3088.7,2.4069]
[1720671188670,0.05537289,3089.1,3088.7,2.4069]
[1720671188935,0.05537289,3089.0,3088.7,2.4069]
[1720671189162,0.67537236,3089.4,3088.7,2.4069]
[1720671189374,1.12191328,3089.3,3088.7,2.4069]
[1720671189636,1.12191328,3089.2,3088.7,2.4069]
[1720671190169,0.05348545,3089.1,3088.7,2.4069]
[1720671190481,1.12191328,3089.0,3088.7,2.4069]
[1720671190663,1.12191328,3089.0,3088.5,9.042]
[1720671190830,1.30699039,3089.0,3088.5,9.042]
[1720671191035,1.17539873,3088.9,3088.5,9.042]
[1720671191573,1.1220589,3088.8,3088.5,9.042]
[1720671191730,1.1220589,3088.7,3088.5,9.042]
[1720671191933,1.79743126,3089.0,3088.5,9.042]
[1720671192134,1.45660608,3088.9,3088.5,9.042]
[1720671192369,1.1220589,3088.8,3088.5,9.042]
[1720671192747,1.1220589,3088.9,3088.5,9.042]
[1720671193070,0.67537236,3089.4,3088.6,2.4097]
[1720671193273,1.69350313,3089.8,3089.2,2.4097]
[1720671193274,1.12186984,3089.3,3089.2,2.4097]
[1720671194683,1.12178845,3089.3,3089.2,2.4097]
[1720671195179,1.12179802,3089.3,3089.2,2.4097]
[1720671197263,1.12179802,3089.3,3089.1,1.905]
[1720671197575,1.12179802,3089.2,3089.1,1.905]
[1720671197775,1.12179802,3089.3,3089.1,1.905]
[1720671197980,0.67636985,3089.4,3089.1,1.905]
[1720671198273,1.1218419,3089.3,3089.1,1.905]
[1720671198441,1.1218419,3089.2,3089.1,1.905]
[1720671200247,1.79821175,3089.2,3089.1,1.905]
[1720671201186,2.13639668,3089.2,3089.0,2.3149]
[1720671201351,1.01455478,3089.2,3089.0,2.3149]
[1720671201556,1.12191762,3089.1,3089.0,2.3149]
[1720671202151,1.79935071,3089.1,3089.0,2.3149]
[1720671202574,0.67743309,3089.2,3089.0,2.3149]
[1720671202779,1.12180542,3089.1,3089.0,2.54639]
[1720671203084,0.67743309,3089.2,3089.0,2.54639]
[1720671203539,0.67743309,3089.1,3089.0,2.54639]
[1720671204148,0.67743309,3089.2,3089.0,2.54639]
[1720671204359,0.67743309,3089.1,3089.0,2.54639]
[1720671204562,0.67743309,3089.2,3089.0,2.54639]
[1720671204992,0.67743309,3089.1,3089.0,2.54639]
[1720671206371,1.01455478,3089.2,3089.0,2.54639]
[1720671206878,0.05373446,3089.1,3089.0,2.54639]
[1720671207381,1.07197469,3089.1,3089.0,2.54639]
[1720671208649,2.41950283,3089.1,3089.0,2.54639]
[1720671208849,2.41950283,3089.1,3089.0,2.3149]
[1720671209363,1.4012626,3089.1,3089.0,2.3149]
[1720671210387,2.75891624,3089.1,3089.0,2.3149]
[1720671210853,1.4012626,3089.1,3089.0,2.3149]
[1720671211058,2.75891624,3089.1,3089.0,2.3149]
[1720671211448,2.5331878,3089.1,3089.0,2.3149]
[1720671211648,3.88072362,3089.1,3089.0,2.3149]
[1720671211953,1.40127028,3089.1,3089.0,2.3149]
[1720671212154,3.88069512,3089.1,3089.0,2.3149]
[1720671214002,2.52304148,3089.1,3089.0,2.3149]
[1720671214295,3.88201228,3089.1,3089.0,2.3149]
[1720671215193,3.88205483,3089.1,3089.0,2.3149]
[1720671218285,1.41270526,3089.1,3089.0,2.3149]
[1720671218627,3.82832793,3089.1,3089.0,3.1089]
[1720671218789,3.88209089,3089.1,3089.0,3.1089]
[1720671221138,3.88209089,3089.1,3089.0,3.3089]
[1720671221825,2.76027696,3089.1,3089.0,3.3089]
[1720671222029,3.88208446,3089.1,3089.0,3.3089]
[1720671224303,2.52311366,3089.1,3089.0,3.3089]
[1720671224624,3.88246887,3089.1,3089.0,3.3089]
[1720671225217,3.88246887,3089.1,3089.0,3.5089]
[1720671225218,2.76063708,3089.1,3089.0,3.5089]
[1720671225526,3.64484547,3089.1,3089.0,3.5089]
[1720671225826,5.34403645,3089.1,3089.0,3.5089]
[1720671226201,3.64484547,3089.1,3089.0,3.5089]
[1720671227887,5.34403645,3089.1,3089.0,3.5089]
[1720671228627,1.17554476,3089.1,3089.0,3.5089]
[1720671228924,5.29191046,3089.1,3089.0,3.5089]
[1720671229225,5.34567342,3089.1,3089.0,3.5089]
[1720671232039,3.64485198,3089.1,3089.0,3.5089]
[1720671232198,5.34570538,3089.1,3089.0,3.5089]
[1720671233143,5.34570538,3089.1,3089.0,4.54489]
[1720671233144,1.02040413,3089.1,3089.0,4.54489]